[Event "December 19 Early 2023"]
[Site "https://www.chess.com"]
[Date "2023.12.19"]
[Round "2"]
[White "Durarbayli, Vasif"]
[Black "Tulchynskyi, Feliks"]
[Result "1-0"]
[Board "60"]
[TimeControl "180+1"]
[WhiteFideId "13402935"]
[BlackFideId "34127895"]
[WhiteElo "2551"]
[BlackElo "2131"]
[WhiteTeam "AZE"]
[BlackTeam "UKR"]
[WhiteClock "0:00:08"]
[BlackClock "0:00:10"]

1. e4 {[%clk 0:03:00]}  e6 {[%clk 0:02:58]} 2. d4 {[%clk 0:02:57]}  d5 {[%clk 0:02:59]} 3. Nc3 {[%clk 0:02:55]}  Nf6 {[%clk 0:02:55]} 4. e5 {[%clk 0:02:56]}  Nfd7 {[%clk 0:02:55]} 5. f4 {[%clk 0:02:57]}  c5 {[%clk 0:02:55]} 6. Nf3 {[%clk 0:02:57]}  Nc6 {[%clk 0:02:55]} 7. Be3 {[%clk 0:02:58]}  a6 {[%clk 0:02:53]} 8. Ne2 {[%clk 0:02:57]}  Qb6 {[%clk 0:02:48]} 9. Qc1 {[%clk 0:02:53]}  Qc7 {[%clk 0:02:40]} 10. c3 {[%clk 0:02:50]}  cxd4 {[%clk 0:02:34]} 11. cxd4 {[%clk 0:02:39]}  Bb4+ {[%clk 0:02:32]} 12. Kf2 {[%clk 0:02:39]}  Qb6 {[%clk 0:02:24]} 13. h4 {[%clk 0:02:35]}  h5 {[%clk 0:02:16]} 14. f5 {[%clk 0:02:29]}  exf5 {[%clk 0:02:09]} 15. Nf4 {[%clk 0:02:28]}  Qa5 {[%clk 0:01:47]} 16. a3 {[%clk 0:02:26]}  Be7 {[%clk 0:01:39]} 17. b4 {[%clk 0:01:47]}  Qd8 {[%clk 0:01:39]} 18. Nxd5 {[%clk 0:01:45]}  Ndxe5 {[%clk 0:01:23]} 19. dxe5 {[%clk 0:01:30]}  Qxd5 {[%clk 0:01:20]} 20. Bc4 {[%clk 0:01:29]}  Qd8 {[%clk 0:00:55]} 21. Rd1 {[%clk 0:01:18]}  Qc7 {[%clk 0:00:55]} 22. Bg5 {[%clk 0:01:01]}  Be6 {[%clk 0:00:43]} 23. Bxe6 {[%clk 0:00:58]}  fxe6 {[%clk 0:00:38]} 24. Qc4 {[%clk 0:00:43]}  Qc8 {[%clk 0:00:31]} 25. Rac1 {[%clk 0:00:33]}  O-O {[%clk 0:00:29]} 26. Bxe7 {[%clk 0:00:20]}  Nxe7 {[%clk 0:00:29]} 27. Qb3 {[%clk 0:00:20]}  Nc6 {[%clk 0:00:20]} 28. Rd6 {[%clk 0:00:21]}  Re8 {[%clk 0:00:18]} 29. Ng5 {[%clk 0:00:21]}  Nxe5 {[%clk 0:00:16]} 30. Rxc8 {[%clk 0:00:19]}  Ng4+ {[%clk 0:00:16]} 31. Kg3 {[%clk 0:00:15]}  Raxc8 {[%clk 0:00:16]} 32. Rxe6 {[%clk 0:00:15]}  Kh8 {[%clk 0:00:14]} 33. Rxe8+ {[%clk 0:00:11]}  Rxe8 {[%clk 0:00:15]} 34. Qf7 {[%clk 0:00:11]}  Re3+ {[%clk 0:00:14]} 35. Kf4 {[%clk 0:00:08]}  Re2 {[%clk 0:00:10]} 36. Qf8# {[%clk 0:00:08]} 1-0

[Event "December 19 Early 2023"]
[Site "https://www.chess.com"]
[Date "2023.12.19"]
[Round "2"]
[White "Shuvalov, Evgenij"]
[Black "Haug, Havard"]
[Result "0-1"]
[Board "61"]
[TimeControl "180+1"]
[WhiteFideId "4187237"]
[BlackFideId "1547887"]
[WhiteElo "2084"]
[BlackElo "2343"]
[WhiteTeam "FID"]
[BlackTeam "NOR"]
[WhiteClock "0:00:44"]
[BlackClock "0:00:41"]

1. d4 {[%clk 0:03:00]}  d5 {[%clk 0:02:56]} 2. c4 {[%clk 0:03:00]}  e6 {[%clk 0:02:56]} 3. Nc3 {[%clk 0:03:00]}  c5 {[%clk 0:02:56]} 4. cxd5 {[%clk 0:02:59]}  cxd4 {[%clk 0:02:56]} 5. Qa4+ {[%clk 0:02:58]}  Bd7 {[%clk 0:02:56]} 6. Qxd4 {[%clk 0:02:58]}  exd5 {[%clk 0:02:57]} 7. Qxd5 {[%clk 0:02:57]}  Nf6 {[%clk 0:02:57]} 8. Qd1 {[%clk 0:02:56]}  Bc5 {[%clk 0:02:57]} 9. e3 {[%clk 0:02:53]}  O-O {[%clk 0:02:56]} 10. Nf3 {[%clk 0:02:54]}  Qe7 {[%clk 0:02:56]} 11. Be2 {[%clk 0:02:54]}  Rd8 {[%clk 0:02:55]} 12. O-O {[%clk 0:02:53]}  Nc6 {[%clk 0:02:54]} 13. a3 {[%clk 0:02:47]}  Ne5 {[%clk 0:02:53]} 14. Nd4 {[%clk 0:02:45]}  Bc6 {[%clk 0:02:50]} 15. b4 {[%clk 0:02:40]}  Bb6 {[%clk 0:02:41]} 16. Bb2 {[%clk 0:02:39]}  Bxd4 {[%clk 0:02:37]} 17. exd4 {[%clk 0:02:40]}  Ng6 {[%clk 0:02:37]} 18. Bf3 {[%clk 0:02:34]}  Bxf3 {[%clk 0:02:21]} 19. Qxf3 {[%clk 0:02:35]}  Rxd4 {[%clk 0:02:21]} 20. Rfe1 {[%clk 0:02:34]}  Qd7 {[%clk 0:02:07]} 21. Rad1 {[%clk 0:02:31]}  h6 {[%clk 0:02:06]} 22. h3 {[%clk 0:02:30]}  Kh7 {[%clk 0:01:50]} 23. Rxd4 {[%clk 0:02:28]}  Qxd4 {[%clk 0:01:51]} 24. Qxb7 {[%clk 0:02:28]}  Rd8 {[%clk 0:01:41]} 25. Qxf7 {[%clk 0:02:19]}  Rd7 {[%clk 0:01:36]} 26. Qb3 {[%clk 0:02:12]}  Qh4 {[%clk 0:01:12]} 27. Qc2 {[%clk 0:02:06]}  Qg5 {[%clk 0:01:07]} 28. Bc1 {[%clk 0:01:47]}  Qh5 {[%clk 0:00:59]} 29. Ne4 {[%clk 0:01:40]}  Nxe4 {[%clk 0:01:00]} 30. Qxe4 {[%clk 0:01:40]}  Re7 {[%clk 0:00:59]} 31. Qxe7 {[%clk 0:01:11]}  Nxe7 {[%clk 0:01:00]} 32. Bb2 {[%clk 0:01:08]}  Nd5 {[%clk 0:00:51]} 33. Bd4 {[%clk 0:01:05]}  a6 {[%clk 0:00:50]} 34. Bc5 {[%clk 0:01:02]}  Nf4 {[%clk 0:00:47]} 35. Be3 {[%clk 0:00:58]}  Nd3 {[%clk 0:00:45]} 36. Rf1 {[%clk 0:00:56]}  Qd5 {[%clk 0:00:43]} 37. Rd1 {[%clk 0:00:53]}  Qb3 {[%clk 0:00:42]} 38. a4 {[%clk 0:00:44]}  Qxd1+ {[%clk 0:00:41]} 0-1

[Event "December 19 Early 2023"]
[Site "https://www.chess.com"]
[Date "2023.12.19"]
[Round "2"]
[White "Kezin, Roman"]
[Black "Vakhidov, Shahzod"]
[Result "1-0"]
[Board "62"]
[TimeControl "180+1"]
[WhiteFideId "24124621"]
[BlackFideId "14205270"]
[WhiteElo "2492"]
[BlackElo "2212"]
[WhiteTeam "RUS"]
[BlackTeam "UZB"]
[WhiteClock "0:00:43"]
[BlackClock "0:00:01"]

1. d4 {[%clk 0:02:59]}  Nf6 {[%clk 0:03:00]} 2. c4 {[%clk 0:02:59]}  c5 {[%clk 0:03:00]} 3. d5 {[%clk 0:02:59]}  b5 {[%clk 0:03:01]} 4. Nf3 {[%clk 0:02:58]}  g6 {[%clk 0:03:00]} 5. cxb5 {[%clk 0:02:57]}  a6 {[%clk 0:03:00]} 6. bxa6 {[%clk 0:02:56]}  Bg7 {[%clk 0:03:00]} 7. Nc3 {[%clk 0:02:55]}  O-O {[%clk 0:03:00]} 8. a7 {[%clk 0:02:55]}  Rxa7 {[%clk 0:03:00]} 9. e4 {[%clk 0:02:55]}  d6 {[%clk 0:03:00]} 10. Be2 {[%clk 0:02:53]}  Nbd7 {[%clk 0:02:47]} 11. O-O {[%clk 0:02:52]}  Qb6 {[%clk 0:02:47]} 12. a4 {[%clk 0:02:50]}  Ba6 {[%clk 0:02:45]} 13. Re1 {[%clk 0:02:48]}  Rb8 {[%clk 0:02:43]} 14. Ra3 {[%clk 0:02:41]}  Ne8 {[%clk 0:02:39]} 15. Nb5 {[%clk 0:02:27]}  Raa8 {[%clk 0:02:21]} 16. Nd2 {[%clk 0:02:26]}  Ne5 {[%clk 0:01:56]} 17. Kh1 {[%clk 0:02:11]}  c4 {[%clk 0:01:47]} 18. Nxc4 {[%clk 0:02:07]}  Nxc4 {[%clk 0:01:45]} 19. Bxc4 {[%clk 0:02:08]}  Qxf2 {[%clk 0:01:44]} 20. Rf3 {[%clk 0:01:55]}  Qh4 {[%clk 0:01:39]} 21. b3 {[%clk 0:01:54]}  Bxb5 {[%clk 0:01:32]} 22. Bxb5 {[%clk 0:01:52]}  Be5 {[%clk 0:01:28]} 23. Rh3 {[%clk 0:01:47]}  Qf6 {[%clk 0:01:19]} 24. Rf1 {[%clk 0:01:46]}  Qh8 {[%clk 0:01:14]} 25. Bd2 {[%clk 0:00:59]}  Nf6 {[%clk 0:01:12]} 26. Qe2 {[%clk 0:00:59]}  h5 {[%clk 0:01:05]} 27. Bc6 {[%clk 0:01:00]}  Ra7 {[%clk 0:00:58]} 28. b4 {[%clk 0:01:00]}  e6 {[%clk 0:00:19]} 29. Be3 {[%clk 0:00:57]}  Re7 {[%clk 0:00:17]} 30. b5 {[%clk 0:00:54]}  exd5 {[%clk 0:00:17]} 31. exd5 {[%clk 0:00:55]}  Ng4 {[%clk 0:00:18]} 32. Bg1 {[%clk 0:00:49]}  Kf8 {[%clk 0:00:11]} 33. Qxg4 {[%clk 0:00:47]}  hxg4 {[%clk 0:00:09]} 34. Rxh8+ {[%clk 0:00:48]}  Bxh8 {[%clk 0:00:10]} 35. a5 {[%clk 0:00:47]}  Re2 {[%clk 0:00:07]} 36. a6 {[%clk 0:00:45]}  Ra2 {[%clk 0:00:06]} 37. a7 {[%clk 0:00:45]}  Rd8 {[%clk 0:00:06]} 38. b6 {[%clk 0:00:44]}  Be5 {[%clk 0:00:01]} 39. b7 {[%clk 0:00:43]} 1-0

[Event "December 19 Early 2023"]
[Site "https://www.chess.com"]
[Date "2023.12.19"]
[Round "2"]
[White "Finek, Vaclav"]
[Black "Liang, Justin"]
[Result "1-0"]
[Board "66"]
[TimeControl "180+1"]
[WhiteFideId "23718293"]
[BlackFideId "2099942"]
[WhiteElo "2309"]
[BlackElo "2551"]
[WhiteTeam "CZE"]
[BlackTeam "USA"]
[WhiteClock "0:00:34"]
[BlackClock "0:00:04"]

1. Nf3 {[%clk 0:03:00]}  Nf6 {[%clk 0:02:33]} 2. g3 {[%clk 0:03:00]}  g6 {[%clk 0:02:32]} 3. Bg2 {[%clk 0:03:00]}  Bg7 {[%clk 0:02:33]} 4. O-O {[%clk 0:03:01]}  O-O {[%clk 0:02:34]} 5. d4 {[%clk 0:03:02]}  d6 {[%clk 0:02:33]} 6. c4 {[%clk 0:03:02]}  Nc6 {[%clk 0:02:30]} 7. Nc3 {[%clk 0:03:01]}  e5 {[%clk 0:02:28]} 8. dxe5 {[%clk 0:03:00]}  dxe5 {[%clk 0:02:26]} 9. Bg5 {[%clk 0:02:54]}  Be6 {[%clk 0:02:25]} 10. Qc1 {[%clk 0:02:51]}  Qc8 {[%clk 0:01:39]} 11. Rd1 {[%clk 0:02:47]}  Nd7 {[%clk 0:01:18]} 12. Nd5 {[%clk 0:02:46]}  Re8 {[%clk 0:01:18]} 13. Nd2 {[%clk 0:02:21]}  h6 {[%clk 0:01:09]} 14. Be3 {[%clk 0:02:17]}  Nd4 {[%clk 0:01:06]} 15. Re1 {[%clk 0:02:11]}  c6 {[%clk 0:00:58]} 16. Nb4 {[%clk 0:02:10]}  Nf6 {[%clk 0:00:42]} 17. Nc2 {[%clk 0:02:07]}  Ng4 {[%clk 0:00:36]} 18. Nxd4 {[%clk 0:01:53]}  exd4 {[%clk 0:00:30]} 19. Bf4 {[%clk 0:01:51]}  g5 {[%clk 0:00:19]} 20. Bd6 {[%clk 0:01:50]}  Qd7 {[%clk 0:00:19]} 21. c5 {[%clk 0:01:49]}  f5 {[%clk 0:00:16]} 22. Qc2 {[%clk 0:01:36]}  Qf7 {[%clk 0:00:14]} 23. Rad1 {[%clk 0:01:31]}  Rad8 {[%clk 0:00:12]} 24. b3 {[%clk 0:01:31]}  Bc8 {[%clk 0:00:07]} 25. Nc4 {[%clk 0:01:29]}  f4 {[%clk 0:00:06]} 26. Rf1 {[%clk 0:01:23]}  Qh5 {[%clk 0:00:04]} 27. h3 {[%clk 0:01:17]}  Nf6 {[%clk 0:00:04]} 28. g4 {[%clk 0:00:58]}  Bxg4 {[%clk 0:00:03]} 29. hxg4 {[%clk 0:00:59]}  Nxg4 {[%clk 0:00:03]} 30. Rfe1 {[%clk 0:00:59]}  Qh2+ {[%clk 0:00:03]} 31. Kf1 {[%clk 0:01:00]}  Rd7 {[%clk 0:00:03]} 32. Rd3 {[%clk 0:00:50]}  Qh4 {[%clk 0:00:02]} 33. Rf3 {[%clk 0:00:39]}  Nh2+ {[%clk 0:00:02]} 34. Kg1 {[%clk 0:00:39]}  Nxf3+ {[%clk 0:00:03]} 35. Bxf3 {[%clk 0:00:40]}  g4 {[%clk 0:00:03]} 36. Qg6 {[%clk 0:00:36]}  Rf7 {[%clk 0:00:01]} 37. Qxg4 {[%clk 0:00:36]}  Qg5 {[%clk 0:00:02]} 38. Qxg5 {[%clk 0:00:36]}  hxg5 {[%clk 0:00:03]} 39. Kg2 {[%clk 0:00:36]}  Rf6 {[%clk 0:00:03]} 40. Bg4 {[%clk 0:00:34]}  Bf8 {[%clk 0:00:03]} 41. Rd1 {[%clk 0:00:33]}  Bxd6 {[%clk 0:00:03]} 42. Nxd6 {[%clk 0:00:33]}  Rd8 {[%clk 0:00:03]} 43. Nxb7 {[%clk 0:00:29]}  Rd5 {[%clk 0:00:03]} 44. Bf3 {[%clk 0:00:29]}  Rd7 {[%clk 0:00:02]} 45. Nd6 {[%clk 0:00:29]}  Kg7 {[%clk 0:00:02]} 46. Bg4 {[%clk 0:00:29]}  Rdxd6 {[%clk 0:00:02]} 47. cxd6 {[%clk 0:00:30]}  Rxd6 {[%clk 0:00:03]} 48. Kf3 {[%clk 0:00:30]}  Kf6 {[%clk 0:00:04]} 49. Ke4 {[%clk 0:00:30]}  Rd5 {[%clk 0:00:04]} 50. Rxd4 {[%clk 0:00:30]}  Re5+ {[%clk 0:00:04]} 51. Kd3 {[%clk 0:00:30]}  Ra5 {[%clk 0:00:05]} 52. Rd6+ {[%clk 0:00:30]}  Ke5 {[%clk 0:00:06]} 53. Rxc6 {[%clk 0:00:28]}  Rxa2 {[%clk 0:00:06]} 54. Rc5+ {[%clk 0:00:29]}  Kf6 {[%clk 0:00:06]} 55. Rf5+ {[%clk 0:00:30]}  Kg6 {[%clk 0:00:07]} 56. Rb5 {[%clk 0:00:30]}  Ra1 {[%clk 0:00:07]} 57. f3 {[%clk 0:00:30]}  Rd1+ {[%clk 0:00:07]} 58. Kc4 {[%clk 0:00:30]}  Rd2 {[%clk 0:00:07]} 59. Re5 {[%clk 0:00:30]}  Kf6 {[%clk 0:00:08]} 60. Re6+ {[%clk 0:00:31]}  Kf7 {[%clk 0:00:08]} 61. Re4 {[%clk 0:00:32]}  Kf6 {[%clk 0:00:08]} 62. Kb5 {[%clk 0:00:32]}  Rb2 {[%clk 0:00:08]} 63. b4 {[%clk 0:00:33]}  Ra2 {[%clk 0:00:08]} 64. Kc6 {[%clk 0:00:32]}  a6 {[%clk 0:00:08]} 65. Kb6 {[%clk 0:00:32]}  Kf7 {[%clk 0:00:08]} 66. Bc8 {[%clk 0:00:32]}  Kf6 {[%clk 0:00:06]} 67. Bxa6 {[%clk 0:00:32]}  g4 {[%clk 0:00:06]} 68. fxg4 {[%clk 0:00:32]}  Kg5 {[%clk 0:00:07]} 69. Bc8 {[%clk 0:00:32]}  Ra3 {[%clk 0:00:06]} 70. Bf5 {[%clk 0:00:33]}  Rb3 {[%clk 0:00:05]} 71. b5 {[%clk 0:00:32]}  Rb2 {[%clk 0:00:04]} 72. Kc5 {[%clk 0:00:33]}  Rc2+ {[%clk 0:00:04]} 73. Kb4 {[%clk 0:00:33]}  Rb2+ {[%clk 0:00:05]} 74. Kc4 {[%clk 0:00:33]}  Rc2+ {[%clk 0:00:05]} 75. Kb3 {[%clk 0:00:34]}  Rc5 {[%clk 0:00:04]} 76. Kb4 {[%clk 0:00:33]}  Rc2 {[%clk 0:00:03]} 77. b6 {[%clk 0:00:34]}  Rb2+ {[%clk 0:00:04]} 78. Kc5 {[%clk 0:00:34]}  f3 {[%clk 0:00:04]} 79. exf3 {[%clk 0:00:34]} 1-0

[Event "December 19 Early 2023"]
[Site "https://www.chess.com"]
[Date "2023.12.19"]
[Round "2"]
[White "Dragun, Kamil"]
[Black "Gong, Qianyun"]
[Result "0-1"]
[Board "68"]
[TimeControl "180+1"]
[WhiteFideId "1134167"]
[BlackFideId "8602425"]
[WhiteElo "2551"]
[BlackElo "2157"]
[WhiteTeam "POL"]
[BlackTeam "SGP"]
[WhiteClock "0:00:14"]
[BlackClock "0:01:09"]

1. d4 {[%clk 0:02:54]}  d5 {[%clk 0:02:59]} 2. c4 {[%clk 0:02:52]}  c6 {[%clk 0:02:59]} 3. Nc3 {[%clk 0:02:52]}  Nf6 {[%clk 0:02:58]} 4. e3 {[%clk 0:02:52]}  Bf5 {[%clk 0:02:58]} 5. cxd5 {[%clk 0:02:52]}  cxd5 {[%clk 0:02:58]} 6. Qb3 {[%clk 0:02:52]}  Nc6 {[%clk 0:02:58]} 7. Qxb7 {[%clk 0:02:53]}  Bd7 {[%clk 0:02:57]} 8. Qb3 {[%clk 0:02:53]}  Rb8 {[%clk 0:02:57]} 9. Qd1 {[%clk 0:02:54]}  e5 {[%clk 0:02:57]} 10. dxe5 {[%clk 0:02:54]}  Nxe5 {[%clk 0:02:58]} 11. Be2 {[%clk 0:02:55]}  Bd6 {[%clk 0:02:49]} 12. Nf3 {[%clk 0:02:55]}  O-O {[%clk 0:02:48]} 13. O-O {[%clk 0:02:49]}  Qc7 {[%clk 0:02:34]} 14. Nd4 {[%clk 0:01:40]}  Nc4 {[%clk 0:02:13]} 15. h3 {[%clk 0:01:30]}  Nxb2 {[%clk 0:01:58]} 16. Bxb2 {[%clk 0:01:31]}  Rxb2 {[%clk 0:01:59]} 17. Ncb5 {[%clk 0:01:27]}  Bxb5 {[%clk 0:01:52]} 18. Nxb5 {[%clk 0:01:28]}  Bh2+ {[%clk 0:01:47]} 19. Kh1 {[%clk 0:01:27]}  Qb8 {[%clk 0:01:46]} 20. Nd4 {[%clk 0:01:07]}  Ne4 {[%clk 0:01:28]} 21. Qe1 {[%clk 0:00:44]}  Be5 {[%clk 0:01:14]} 22. Nc6 {[%clk 0:00:34]}  Qd6 {[%clk 0:01:13]} 23. Nxe5 {[%clk 0:00:27]}  Qxe5 {[%clk 0:01:14]} 24. Bd3 {[%clk 0:00:14]}  Nxf2+ {[%clk 0:01:09]} 0-1

[Event "December 19 Early 2023"]
[Site "https://www.chess.com"]
[Date "2023.12.19"]
[Round "2"]
[White "Korchynskyi, Mykola"]
[Black "Lagarde, Maxime"]
[Result "0-1"]
[Board "69"]
[TimeControl "180+1"]
[WhiteFideId "34138005"]
[BlackFideId "662399"]
[WhiteElo "2007"]
[BlackElo "2564"]
[WhiteTeam "UKR"]
[BlackTeam "FRA"]
[WhiteClock "0:00:05"]
[BlackClock "0:00:12"]

1. d4 {[%clk 0:03:00]}  d5 {[%clk 0:02:58]} 2. c4 {[%clk 0:02:56]}  c6 {[%clk 0:02:58]} 3. Nc3 {[%clk 0:02:56]}  Nf6 {[%clk 0:02:57]} 4. cxd5 {[%clk 0:02:56]}  cxd5 {[%clk 0:02:57]} 5. Bf4 {[%clk 0:02:55]}  Bf5 {[%clk 0:02:57]} 6. e3 {[%clk 0:02:54]}  e6 {[%clk 0:02:56]} 7. Nf3 {[%clk 0:02:49]}  Bd6 {[%clk 0:02:55]} 8. Bg3 {[%clk 0:02:43]}  O-O {[%clk 0:02:48]} 9. Bd3 {[%clk 0:02:33]}  Ne4 {[%clk 0:02:45]} 10. O-O {[%clk 0:02:33]}  Nxc3 {[%clk 0:02:36]} 11. bxc3 {[%clk 0:02:31]}  Bxd3 {[%clk 0:02:37]} 12. Qxd3 {[%clk 0:02:30]}  Bxg3 {[%clk 0:02:38]} 13. hxg3 {[%clk 0:02:27]}  Nc6 {[%clk 0:02:39]} 14. c4 {[%clk 0:02:26]}  Rc8 {[%clk 0:02:31]} 15. c5 {[%clk 0:02:20]}  b6 {[%clk 0:02:16]} 16. cxb6 {[%clk 0:02:13]}  Qxb6 {[%clk 0:02:13]} 17. Rfc1 {[%clk 0:02:06]}  Na5 {[%clk 0:02:08]} 18. Ne5 {[%clk 0:02:05]}  Rxc1+ {[%clk 0:01:57]} 19. Rxc1 {[%clk 0:02:04]}  Qb2 {[%clk 0:01:55]} 20. Rc7 {[%clk 0:02:01]}  Nb7 {[%clk 0:01:40]} 21. Qa6 {[%clk 0:01:58]}  Nd8 {[%clk 0:01:26]} 22. Qxa7 {[%clk 0:01:52]}  Qd2 {[%clk 0:01:23]} 23. Qa6 {[%clk 0:01:28]}  Qd1+ {[%clk 0:01:09]} 24. Qf1 {[%clk 0:01:27]}  Qd2 {[%clk 0:01:10]} 25. Qa1 {[%clk 0:01:27]}  f6 {[%clk 0:01:07]} 26. Nd7 {[%clk 0:01:15]}  Re8 {[%clk 0:01:05]} 27. Nc5 {[%clk 0:01:10]}  h5 {[%clk 0:00:55]} 28. Qb1 {[%clk 0:01:07]}  f5 {[%clk 0:00:49]} 29. Nd7 {[%clk 0:00:57]}  Nf7 {[%clk 0:00:46]} 30. Qb7 {[%clk 0:00:50]}  h4 {[%clk 0:00:41]} 31. gxh4 {[%clk 0:00:25]}  Qe1+ {[%clk 0:00:40]} 32. Kh2 {[%clk 0:00:23]}  Qxf2 {[%clk 0:00:41]} 33. Nf6+ {[%clk 0:00:09]}  gxf6 {[%clk 0:00:40]} 34. Rxf7 {[%clk 0:00:10]}  Qxh4+ {[%clk 0:00:39]} 35. Kg1 {[%clk 0:00:11]}  Qg3 {[%clk 0:00:32]} 36. Rc7 {[%clk 0:00:04]}  Qxe3+ {[%clk 0:00:30]} 37. Kf1 {[%clk 0:00:05]}  Qf4+ {[%clk 0:00:29]} 38. Ke2 {[%clk 0:00:04]}  Qg4+ {[%clk 0:00:29]} 39. Kf1 {[%clk 0:00:05]}  Qd1+ {[%clk 0:00:28]} 40. Kf2 {[%clk 0:00:04]}  Qxd4+ {[%clk 0:00:28]} 41. Kf1 {[%clk 0:00:05]}  Qf4+ {[%clk 0:00:25]} 42. Kg1 {[%clk 0:00:04]}  Qe3+ {[%clk 0:00:25]} 43. Kf1 {[%clk 0:00:05]}  Qg5 {[%clk 0:00:24]} 44. Qc6 {[%clk 0:00:04]}  Rf8 {[%clk 0:00:17]} 45. Qxe6+ {[%clk 0:00:05]}  Kh8 {[%clk 0:00:18]} 46. Qe7 {[%clk 0:00:04]}  Qh6 {[%clk 0:00:17]} 47. Rd7 {[%clk 0:00:03]}  Rc8 {[%clk 0:00:16]} 48. Rxd5 {[%clk 0:00:03]}  Qf4+ {[%clk 0:00:15]} 49. Ke2 {[%clk 0:00:02]}  Rc2+ {[%clk 0:00:15]} 50. Ke1 {[%clk 0:00:02]}  Rc1+ {[%clk 0:00:13]} 51. Rd1 {[%clk 0:00:01]}  Qg3+ {[%clk 0:00:11]} 52. Kd2 {[%clk 0:00:02]}  Qg5+ {[%clk 0:00:11]} 53. Ke2 {[%clk 0:00:01]}  Qxg2+ {[%clk 0:00:11]} 54. Ke3 {[%clk 0:00:02]}  Qg3+ {[%clk 0:00:10]} 55. Ke2 {[%clk 0:00:02]}  Qg4+ {[%clk 0:00:09]} 56. Ke3 {[%clk 0:00:03]}  Rxd1 {[%clk 0:00:08]} 57. Qf8+ {[%clk 0:00:03]}  Kh7 {[%clk 0:00:09]} 58. Qf7+ {[%clk 0:00:04]}  Kh6 {[%clk 0:00:10]} 59. Qxf6+ {[%clk 0:00:04]}  Kh5 {[%clk 0:00:10]} 60. Qf7+ {[%clk 0:00:05]}  Kh4 {[%clk 0:00:10]} 61. Qh7+ {[%clk 0:00:05]}  Kg3 {[%clk 0:00:10]} 62. Qc7+ {[%clk 0:00:06]}  f4+ {[%clk 0:00:10]} 63. Ke4 {[%clk 0:00:06]}  Qe2+ {[%clk 0:00:10]} 64. Kf5 {[%clk 0:00:07]}  Rd5+ {[%clk 0:00:11]} 65. Kg6 {[%clk 0:00:07]}  Qe6+ {[%clk 0:00:10]} 66. Kg7 {[%clk 0:00:07]}  Rd7+ {[%clk 0:00:11]} 67. Qxd7 {[%clk 0:00:06]}  Qxd7+ {[%clk 0:00:12]} 68. Kf8 {[%clk 0:00:07]}  Qd8+ {[%clk 0:00:12]} 69. Kf7 {[%clk 0:00:05]}  Qd6 {[%clk 0:00:12]} 0-1

[Event "December 19 Early 2023"]
[Site "https://www.chess.com"]
[Date "2023.12.19"]
[Round "2"]
[White "Aaron, Deepak"]
[Black "Gabrielian, Artur"]
[Result "0-1"]
[Board "77"]
[TimeControl "180+1"]
[WhiteFideId "2009412"]
[BlackFideId "4131002"]
[WhiteElo "2257"]
[BlackElo "2441"]
[WhiteTeam "USA"]
[BlackTeam "RUS"]
[WhiteClock "0:00:17"]
[BlackClock "0:01:18"]

1. d4 {[%clk 0:03:00]}  Nf6 {[%clk 0:02:59]} 2. c4 {[%clk 0:03:00]}  c5 {[%clk 0:02:58]} 3. d5 {[%clk 0:02:58]}  e6 {[%clk 0:02:59]} 4. Nc3 {[%clk 0:02:55]}  exd5 {[%clk 0:02:59]} 5. cxd5 {[%clk 0:02:55]}  d6 {[%clk 0:02:59]} 6. e4 {[%clk 0:02:54]}  g6 {[%clk 0:03:00]} 7. Nge2 {[%clk 0:02:42]}  h5 {[%clk 0:02:59]} 8. h4 {[%clk 0:02:41]}  Bg7 {[%clk 0:02:57]} 9. Ng3 {[%clk 0:02:41]}  O-O {[%clk 0:02:56]} 10. Be2 {[%clk 0:02:38]}  Re8 {[%clk 0:02:55]} 11. O-O {[%clk 0:02:38]}  a6 {[%clk 0:02:44]} 12. a4 {[%clk 0:02:34]}  Nbd7 {[%clk 0:02:38]} 13. Bg5 {[%clk 0:02:34]}  Qc7 {[%clk 0:02:31]} 14. f4 {[%clk 0:02:32]}  Nh7 {[%clk 0:02:31]} 15. Bxh5 {[%clk 0:02:10]}  Nxg5 {[%clk 0:02:30]} 16. hxg5 {[%clk 0:02:08]}  gxh5 {[%clk 0:02:26]} 17. Qxh5 {[%clk 0:02:03]}  Nf8 {[%clk 0:02:05]} 18. e5 {[%clk 0:01:51]}  dxe5 {[%clk 0:01:57]} 19. f5 {[%clk 0:01:51]}  e4 {[%clk 0:01:57]} 20. Ncxe4 {[%clk 0:01:39]}  Qe5 {[%clk 0:01:56]} 21. Rae1 {[%clk 0:01:16]}  Qd4+ {[%clk 0:01:56]} 22. Kh1 {[%clk 0:01:16]}  Bd7 {[%clk 0:01:56]} 23. f6 {[%clk 0:01:03]}  Bh8 {[%clk 0:01:55]} 24. g6 {[%clk 0:00:41]}  Nxg6 {[%clk 0:01:52]} 25. Ng5 {[%clk 0:00:40]}  Qh4+ {[%clk 0:01:50]} 26. Qxh4 {[%clk 0:00:39]}  Nxh4 {[%clk 0:01:50]} 27. N3e4 {[%clk 0:00:37]}  Re5 {[%clk 0:01:43]} 28. Nxc5 {[%clk 0:00:34]}  Rxg5 {[%clk 0:01:38]} 29. Nxd7 {[%clk 0:00:34]}  Rd8 {[%clk 0:01:33]} 30. Nb6 {[%clk 0:00:29]}  Nf5 {[%clk 0:01:26]} 31. Rf3 {[%clk 0:00:20]}  Bxf6 {[%clk 0:01:24]} 32. Ref1 {[%clk 0:00:20]}  Rh5+ {[%clk 0:01:22]} 33. Rh3 {[%clk 0:00:20]}  Ng3+ {[%clk 0:01:21]} 34. Kg1 {[%clk 0:00:17]}  Bd4+ {[%clk 0:01:18]} 0-1